[Event "*** Titled Tuesday Blitz"]
[Site "Chess.com"]
[Date "2019.12.03"]
[Round "7"]
[White "ChessWarrior7197"]
[Black "Gennady_Kozlov"]
[Result "1/2-1/2"]
[WhiteElo "2904"]
[BlackElo "2556"]
[TimeControl "180+2"]
[EndTime "14:36:58 PST"]
[Termination "Game drawn - insufficient material"]

1. e4 {[%clk 0:03:01.9]} 1... e6 {[%clk 0:03:00.2]} 2. d4 {[%clk 0:03:02.7]}
2... d5 {[%clk 0:03:01.7]} 3. Nc3 {[%clk 0:03:04.4]} 3... Nf6 {[%clk 0:03:02]}
4. e5 {[%clk 0:03:05.3]} 4... Nfd7 {[%clk 0:03:02.4]} 5. f4 {[%clk 0:03:07.2]}
5... c5 {[%clk 0:03:03.8]} 6. Nf3 {[%clk 0:03:08.7]} 6... Nc6 {[%clk 0:03:04.9]}
7. Be3 {[%clk 0:03:10.1]} 7... Qb6 {[%clk 0:03:06.4]} 8. Qd2 {[%clk 0:03:01.8]}
8... cxd4 {[%clk 0:02:57.3]} 9. Nxd4 {[%clk 0:03:02.3]} 9... Nxd4 {[%clk
0:02:43.9]} 10. Bxd4 {[%clk 0:03:02.9]} 10... Bc5 {[%clk 0:02:45.4]} 11. Na4
{[%clk 0:03:02]} 11... Qc6 {[%clk 0:02:44]} 12. Nxc5 {[%clk 0:03:02.1]} 12...
Nxc5 {[%clk 0:02:44.5]} 13. a4 {[%clk 0:03:03.2]} 13... Ne4 {[%clk 0:02:41.1]}
14. Qb4 {[%clk 0:03:00.8]} 14... Qxc2 {[%clk 0:02:32.1]} 15. Bb5+ {[%clk
0:03:01.6]} 15... Bd7 {[%clk 0:02:32.4]} 16. Bxd7+ {[%clk 0:03:00.7]} 16... Kxd7
{[%clk 0:02:33.3]} 17. Qxb7+ {[%clk 0:03:02]} 17... Qc7 {[%clk 0:02:34.3]} 18.
Qxc7+ {[%clk 0:02:59.8]} 18... Kxc7 {[%clk 0:02:35]} 19. Ke2 {[%clk 0:03:01.1]}
19... Rhc8 {[%clk 0:02:33.8]} 20. Rhc1+ {[%clk 0:03:01.2]} 20... Kb7 {[%clk
0:02:34.8]} 21. b4 {[%clk 0:03:02.3]} 21... a6 {[%clk 0:02:25.5]} 22. Kd3 {[%clk
0:03:02.9]} 22... Rxc1 {[%clk 0:02:17]} 23. Rxc1 {[%clk 0:03:03.1]} 23... Rc8
{[%clk 0:02:18.9]} 24. Rxc8 {[%clk 0:03:02.1]} 24... Kxc8 {[%clk 0:02:19.5]} 25.
b5 {[%clk 0:02:59.2]} 25... axb5 {[%clk 0:02:19.7]} 26. axb5 {[%clk 0:03:01.1]}
26... Kb7 {[%clk 0:02:21]} 27. Kc2 {[%clk 0:03:02.7]} 27... Kc7 {[%clk
0:02:16.9]} 28. Kb3 {[%clk 0:03:03.6]} 28... Kb7 {[%clk 0:02:17.8]} 29. Kb4
{[%clk 0:03:04.9]} 29... Kc7 {[%clk 0:02:18.2]} 30. b6+ {[%clk 0:03:06.4]} 30...
Kb7 {[%clk 0:02:18.2]} 31. Kb5 {[%clk 0:03:07.9]} 31... Nd2 {[%clk 0:02:13.7]}
32. Be3 {[%clk 0:02:57.7]} 32... Nc4 {[%clk 0:02:07.5]} 33. Bd4 {[%clk
0:02:58.8]} 33... Nd2 {[%clk 0:02:07]} 34. h3 {[%clk 0:02:55.1]} 34... h5 {[%clk
0:02:00.8]} 35. Bg1 {[%clk 0:02:55.7]} 35... g6 {[%clk 0:01:59.3]} 36. Kc5
{[%clk 0:02:56.1]} 36... Ne4+ {[%clk 0:01:59.8]} 37. Kb5 {[%clk 0:02:56.9]}
37... Nc3+ {[%clk 0:01:59.3]} 38. Kb4 {[%clk 0:02:56.8]} 38... Ne2 {[%clk
0:01:58.3]} 39. Be3 {[%clk 0:02:57.4]} 39... d4 {[%clk 0:01:58.9]} 40. Bd2
{[%clk 0:02:57.7]} 40... Kxb6 {[%clk 0:01:58.1]} 41. Kc4 {[%clk 0:02:59.1]}
41... Kc6 {[%clk 0:01:48.4]} 42. Kd3 {[%clk 0:02:54.4]} 42... Ng3 {[%clk
0:01:41.7]} 43. Kxd4 {[%clk 0:02:55.6]} 43... Nf5+ {[%clk 0:01:43.2]} 44. Ke4
{[%clk 0:02:56.4]} 44... Nh6 {[%clk 0:01:38.9]} 45. Be3 {[%clk 0:02:48.4]} 45...
Kb5 {[%clk 0:01:38.6]} 46. Kf3 {[%clk 0:02:48.1]} 46... Kc4 {[%clk 0:01:37.1]}
47. g4 {[%clk 0:02:48.2]} 47... hxg4+ {[%clk 0:01:38]} 48. hxg4 {[%clk
0:02:50.1]} 48... Ng8 {[%clk 0:01:19.2]} 49. Bc1 {[%clk 0:02:49]} 49... Kd3
{[%clk 0:01:19.4]} 50. Ba3 {[%clk 0:02:49.1]} 50... f6 {[%clk 0:01:18]} 51. exf6
{[%clk 0:02:38.9]} 51... Nxf6 {[%clk 0:01:11]} 52. Bb2 {[%clk 0:02:40.3]} 52...
Nd5 {[%clk 0:01:02.4]} 53. Be5 {[%clk 0:02:40.8]} 53... Ne3 {[%clk 0:01:02.9]}
54. Kg3 {[%clk 0:02:37.4]} 54... Ke4 {[%clk 0:01:01.6]} 55. Kh4 {[%clk
0:02:38.6]} 55... Ng2+ {[%clk 0:01:01.1]} 56. Kg5 {[%clk 0:02:39.5]} 56... Kf3
{[%clk 0:01:01.5]} 57. Bc7 {[%clk 0:02:31]} 57... Ke4 {[%clk 0:00:58.3]} 58.
Kxg6 {[%clk 0:02:30.9]} 58... Nxf4+ {[%clk 0:00:58.9]} 59. Kf7 {[%clk
0:02:28.1]} 59... e5 {[%clk 0:00:54.6]} 60. g5 {[%clk 0:02:28.7]} 60... Kf5
{[%clk 0:00:55.3]} 61. Bd8 {[%clk 0:02:29.6]} 61... e4 {[%clk 0:00:56.1]} 62.
Bb6 {[%clk 0:02:05.6]} 62... Kxg5 {[%clk 0:00:56.8]} 63. Bd4 {[%clk 0:02:06.4]}
63... Kf5 {[%clk 0:00:56.4]} 64. Ke7 {[%clk 0:02:07.5]} 64... Ne6 {[%clk
0:00:53.5]} 65. Be3 {[%clk 0:02:07.9]} 65... Ke5 {[%clk 0:00:54.4]} 66. Kf7
{[%clk 0:02:09.1]} 66... Nf4 {[%clk 0:00:53.5]} 67. Bg1 {[%clk 0:02:10.2]} 67...
Nh3 {[%clk 0:00:53.2]} 68. Be3 {[%clk 0:02:10.7]} 68... Nf4 {[%clk 0:00:54.1]}
69. Bg1 {[%clk 0:02:11.7]} 69... Kf5 {[%clk 0:00:55.1]} 70. Ke7 {[%clk
0:02:12.4]} 70... Kg4 {[%clk 0:00:55.7]} 71. Kd6 {[%clk 0:02:13.1]} 71... Kf3
{[%clk 0:00:57.4]} 72. Ke5 {[%clk 0:02:13.9]} 72... Nd3+ {[%clk 0:00:58.3]} 73.
Kf5 {[%clk 0:02:14.6]} 73... Nb4 {[%clk 0:00:57.6]} 74. Bd4 {[%clk 0:02:15.6]}
74... Nc6 {[%clk 0:00:58]} 75. Bc5 {[%clk 0:02:16.4]} 75... Na5 {[%clk
0:00:56.9]} 76. Ke5 {[%clk 0:02:17.4]} 76... Nb3 {[%clk 0:00:57.4]} 77. Bb6
{[%clk 0:02:18.5]} 77... Nd2 {[%clk 0:00:57.6]} 78. Kd5 {[%clk 0:02:19.9]} 78...
Nf1 {[%clk 0:00:56.4]} 79. Bc5 {[%clk 0:02:20]} 79... Ne3+ {[%clk 0:00:57]} 80.
Kd4 {[%clk 0:02:21.1]} 80... Nf5+ {[%clk 0:00:57.9]} 81. Kc3 {[%clk 0:02:22.3]}
81... Ke2 {[%clk 0:00:58.2]} 82. Bb6 {[%clk 0:02:23.3]} 82... Ne7 {[%clk
0:00:58.3]} 83. Kd4 {[%clk 0:02:23.8]} 83... Kf3 {[%clk 0:00:59.2]} 84. Bc5
{[%clk 0:02:23.3]} 84... Nf5+ {[%clk 0:00:54.8]} 85. Ke5 {[%clk 0:02:23.2]}
85... Ne3 {[%clk 0:00:55.6]} 86. Kd4 {[%clk 0:02:24.4]} 86... Nf1 {[%clk
0:00:54.8]} 87. Kc3 {[%clk 0:02:25.2]} 87... Ng3 {[%clk 0:00:55]} 88. Kd2 {[%clk
0:02:25.5]} 88... Nf5 {[%clk 0:00:55.9]} 89. Ke1 {[%clk 0:02:26.4]} 89... e3
{[%clk 0:00:49.1]} 90. Bxe3 {[%clk 0:02:27.4]} 1/2-1/2

[Event "*** Titled Tuesday Blitz"]
[Site "Chess.com"]
[Date "2019.12.03"]
[Round "7"]
[White "Vuk2000"]
[Black "Supernotar"]
[Result "1/2-1/2"]
[WhiteElo "2762"]
[BlackElo "2644"]
[TimeControl "180+2"]
[EndTime "14:37:05 PST"]
[Termination "Game drawn by repetition"]

1. d4 {[%clk 0:03:01.9]} 1... d5 {[%clk 0:02:59.4]} 2. Bf4 {[%clk 0:03:02.4]}
2... Nf6 {[%clk 0:02:58.6]} 3. e3 {[%clk 0:03:03.5]} 3... e6 {[%clk 0:02:59.6]}
4. Nf3 {[%clk 0:03:01.7]} 4... Bd6 {[%clk 0:02:57]} 5. Bg3 {[%clk 0:03:02.8]}
5... c5 {[%clk 0:02:56.6]} 6. c3 {[%clk 0:03:03.4]} 6... Qc7 {[%clk 0:02:56.4]}
7. Nbd2 {[%clk 0:02:59.2]} 7... Nbd7 {[%clk 0:02:56.3]} 8. dxc5 {[%clk
0:02:58.9]} 8... Qxc5 {[%clk 0:02:45.1]} 9. Nb3 {[%clk 0:02:54.3]} 9... Qc7
{[%clk 0:02:42.7]} 10. Bxd6 {[%clk 0:02:54.7]} 10... Qxd6 {[%clk 0:02:43.1]} 11.
c4 {[%clk 0:02:56.3]} 11... O-O {[%clk 0:02:25.1]} 12. cxd5 {[%clk 0:02:56.2]}
12... Nxd5 {[%clk 0:02:22.1]} 13. Qd2 {[%clk 0:02:53.9]} 13... Qe7 {[%clk
0:02:17.6]} 14. Bd3 {[%clk 0:02:51]} 14... b6 {[%clk 0:02:15.3]} 15. O-O {[%clk
0:02:48.8]} 15... Bb7 {[%clk 0:02:14.2]} 16. a3 {[%clk 0:02:50.1]} 16... Rfd8
{[%clk 0:02:13.9]} 17. Qe2 {[%clk 0:02:51.1]} 17... Rac8 {[%clk 0:02:02.8]} 18.
Rac1 {[%clk 0:02:48.2]} 18... Nc5 {[%clk 0:01:47.6]} 19. Nxc5 {[%clk 0:02:47.8]}
19... Rxc5 {[%clk 0:01:48.3]} 20. b4 {[%clk 0:02:35.1]} 20... Rxc1 {[%clk
0:01:42.7]} 21. Rxc1 {[%clk 0:02:35.3]} 21... h6 {[%clk 0:01:39]} 22. Ba6 {[%clk
0:02:27.8]} 22... Ba8 {[%clk 0:01:27.8]} 23. h3 {[%clk 0:02:25.2]} 23... Qf6
{[%clk 0:01:13.7]} 24. Bd3 {[%clk 0:02:03.7]} 24... Nc3 {[%clk 0:00:49.7]} 25.
Qc2 {[%clk 0:02:04.4]} 25... Bxf3 {[%clk 0:00:36.5]} 26. gxf3 {[%clk 0:01:46]}
26... Nd5 {[%clk 0:00:22.9]} 27. Bf1 {[%clk 0:01:28]} 27... Qxf3 {[%clk
0:00:19.5]} 28. Bg2 {[%clk 0:01:24.7]} 28... Qf6 {[%clk 0:00:19.7]} 29. Rd1
{[%clk 0:01:25]} 29... Qg5 {[%clk 0:00:18.9]} 30. Qd2 {[%clk 0:01:01.2]} 30...
Rc8 {[%clk 0:00:16.3]} 31. Kh1 {[%clk 0:01:02.4]} 31... Nf6 {[%clk 0:00:15]} 32.
Rc1 {[%clk 0:00:58.2]} 32... Rxc1+ {[%clk 0:00:14.8]} 33. Qxc1 {[%clk
0:01:00.1]} 33... Qf5 {[%clk 0:00:13]} 34. Kg1 {[%clk 0:01:00.3]} 34... a5
{[%clk 0:00:11.6]} 35. Qc4 {[%clk 0:00:40]} 35... axb4 {[%clk 0:00:11.6]} 36.
Qxb4 {[%clk 0:00:41.1]} 36... Qa5 {[%clk 0:00:11.2]} 37. Qb2 {[%clk 0:00:28.1]}
37... Nd5 {[%clk 0:00:08.9]} 38. Bf3 {[%clk 0:00:23.1]} 38... Qc5 {[%clk
0:00:07.4]} 39. Kg2 {[%clk 0:00:22.3]} 39... Nc3 {[%clk 0:00:08.1]} 40. Qd2
{[%clk 0:00:17.7]} 40... g6 {[%clk 0:00:07.2]} 41. Qb2 {[%clk 0:00:17.9]} 41...
h5 {[%clk 0:00:07]} 42. Qd2 {[%clk 0:00:16.8]} 42... e5 {[%clk 0:00:07.7]} 43.
Qd8+ {[%clk 0:00:17.2]} 43... Kg7 {[%clk 0:00:08.6]} 44. Bb7 {[%clk 0:00:11.6]}
44... e4 {[%clk 0:00:06.4]} 45. Ba8 {[%clk 0:00:08]} 45... Kh7 {[%clk
0:00:02.5]} 46. h4 {[%clk 0:00:07]} 46... Kg7 {[%clk 0:00:03.9]} 47. Qd7 {[%clk
0:00:06.5]} 47... Qxa3 {[%clk 0:00:05]} 48. Qd4+ {[%clk 0:00:05.6]} 48... Kg8
{[%clk 0:00:06.4]} 49. Bc6 {[%clk 0:00:05.4]} 49... Qb2 {[%clk 0:00:05.7]} 50.
Be8 {[%clk 0:00:04.8]} 50... Qb3 {[%clk 0:00:04.5]} 51. Qd8 {[%clk 0:00:04.8]}
51... Kg7 {[%clk 0:00:04.6]} 52. Qd4+ {[%clk 0:00:06.3]} 52... Kg8 {[%clk
0:00:05.5]} 53. Qd8 {[%clk 0:00:07.4]} 53... Kg7 {[%clk 0:00:06.8]} 54. Qd4+
{[%clk 0:00:08.5]} 54... Kg8 {[%clk 0:00:08.2]} 1/2-1/2

[Event "*** Titled Tuesday Blitz"]
[Site "Chess.com"]
[Date "2019.12.03"]
[Round "7"]
[White "KRASAVCHIK2002"]
[Black "JonahWillow"]
[Result "1/2-1/2"]
[WhiteElo "2490"]
[BlackElo "2780"]
[TimeControl "180+2"]
[EndTime "14:37:11 PST"]
[Termination "Game drawn by agreement"]

1. e4 {[%clk 0:03:01.9]} 1... c5 {[%clk 0:03:00.4]} 2. Nf3 {[%clk 0:03:02.9]}
2... Nc6 {[%clk 0:03:00.5]} 3. d4 {[%clk 0:03:01.9]} 3... cxd4 {[%clk
0:03:02.4]} 4. Nxd4 {[%clk 0:03:02.8]} 4... g6 {[%clk 0:03:04.3]} 5. Nc3 {[%clk
0:03:03.4]} 5... Bg7 {[%clk 0:03:05.3]} 6. Be3 {[%clk 0:03:04.5]} 6... Nf6
{[%clk 0:03:07]} 7. Bc4 {[%clk 0:03:02.7]} 7... O-O {[%clk 0:03:08.3]} 8. Bb3
{[%clk 0:03:03.2]} 8... d6 {[%clk 0:03:09.4]} 9. f3 {[%clk 0:03:02.9]} 9... Bd7
{[%clk 0:03:09.3]} 10. Qd2 {[%clk 0:03:02.9]} 10... Nxd4 {[%clk 0:03:09.9]} 11.
Bxd4 {[%clk 0:03:03]} 11... b5 {[%clk 0:03:11.8]} 12. Nd5 {[%clk 0:02:43.5]}
12... Nxd5 {[%clk 0:02:59.3]} 13. Bxd5 {[%clk 0:02:39.6]} 13... Rc8 {[%clk
0:02:54.9]} 14. Bxg7 {[%clk 0:02:30.1]} 14... Kxg7 {[%clk 0:02:56.8]} 15. Bb3
{[%clk 0:02:19.7]} 15... Qb6 {[%clk 0:02:51.3]} 16. c3 {[%clk 0:01:59.7]} 16...
a5 {[%clk 0:02:49.9]} 17. h4 {[%clk 0:01:46.9]} 17... h5 {[%clk 0:02:46.5]} 18.
a3 {[%clk 0:01:41]} 18... Qc5 {[%clk 0:02:35.3]} 19. Qf2 {[%clk 0:01:39.8]}
19... Qe5 {[%clk 0:02:27]} 20. O-O {[%clk 0:01:38.7]} 20... Be6 {[%clk
0:02:16.2]} 21. Bxe6 {[%clk 0:01:35.9]} 21... Qxe6 {[%clk 0:02:18.1]} 22. Qd4+
{[%clk 0:01:27.9]} 22... Kg8 {[%clk 0:02:16]} 23. Rfd1 {[%clk 0:01:18]} 23...
Qb3 {[%clk 0:02:11.1]} 24. Rd2 {[%clk 0:01:15.3]} 24... Rc7 {[%clk 0:02:04.4]}
25. Qb6 {[%clk 0:00:57.3]} 25... Qc4 {[%clk 0:02:04.9]} 26. Qd4 {[%clk 0:00:56]}
26... Qe6 {[%clk 0:01:58.7]} 27. a4 {[%clk 0:00:53.7]} 27... Rc4 {[%clk
0:01:37.2]} 28. Qd5 {[%clk 0:00:52.7]} 28... Rxa4 {[%clk 0:01:31.8]} 29. Rxa4
{[%clk 0:00:50.8]} 29... bxa4 {[%clk 0:01:33.7]} 30. Qxa5 {[%clk 0:00:50.4]}
30... Qb3 {[%clk 0:01:33.4]} 31. e5 {[%clk 0:00:43.6]} 31... dxe5 {[%clk
0:01:32.5]} 32. Qxe5 {[%clk 0:00:43.6]} 32... Qb6+ {[%clk 0:01:30.3]} 33. Qd4
{[%clk 0:00:43.4]} 33... Qb5 {[%clk 0:01:29.7]} 34. Qd5 {[%clk 0:00:36.9]} 34...
Qa6 {[%clk 0:01:26.3]} 35. c4 {[%clk 0:00:35]} 35... Rc8 {[%clk 0:01:26.3]} 36.
c5 {[%clk 0:00:34.8]} 36... Qb5 {[%clk 0:01:22.7]} 37. Rc2 {[%clk 0:00:35.5]}
37... Qb4 {[%clk 0:01:21.8]} 38. Qc4 {[%clk 0:00:32.7]} 38... Qe1+ {[%clk
0:01:17.5]} 39. Kh2 {[%clk 0:00:32.2]} 39... Qe5+ {[%clk 0:01:17.2]} 40. g3
{[%clk 0:00:27]} 40... Qf5 {[%clk 0:01:11.5]} 41. c6 {[%clk 0:00:25.2]} 41...
Rc7 {[%clk 0:01:01.9]} 42. Kg2 {[%clk 0:00:24]} 42... Qe5 {[%clk 0:00:59.1]} 43.
Qxa4 {[%clk 0:00:23.4]} 43... Qd5 {[%clk 0:01:00]} 44. Qc4 {[%clk 0:00:23.6]}
44... Qd1 {[%clk 0:00:55.2]} 45. b4 {[%clk 0:00:24.1]} 45... e5 {[%clk
0:00:55.3]} 46. b5 {[%clk 0:00:24.9]} 46... Qb1 {[%clk 0:00:57]} 47. Qc5 {[%clk
0:00:23.4]} 47... e4 {[%clk 0:00:55.6]} 48. fxe4 {[%clk 0:00:24.6]} 48... Qe1
{[%clk 0:00:54.2]} 49. b6 {[%clk 0:00:24]} 49... Qxe4+ {[%clk 0:00:55.5]} 50.
Kh2 {[%clk 0:00:25.2]} 50... Re7 {[%clk 0:00:55]} 51. Qxe7 {[%clk 0:00:24.5]}
51... Qxc2+ {[%clk 0:00:55.4]} 52. Kg1 {[%clk 0:00:22.5]} 52... Qb1+ {[%clk
0:00:37.2]} 53. Kg2 {[%clk 0:00:21]} 53... Qxb6 {[%clk 0:00:34.8]} 54. c7 {[%clk
0:00:19.9]} 54... Qc6+ {[%clk 0:00:36.1]} 55. Kf2 {[%clk 0:00:20.5]} 55... Qc2+
{[%clk 0:00:35.9]} 56. Ke3 {[%clk 0:00:20.3]} 56... Qc3+ {[%clk 0:00:36.5]} 57.
Kf4 {[%clk 0:00:18.9]} 57... Qd4+ {[%clk 0:00:37]} 58. Kf3 {[%clk 0:00:17.7]}
58... Qc3+ {[%clk 0:00:38.4]} 59. Ke2 {[%clk 0:00:18.3]} 59... Qc2+ {[%clk
0:00:38.6]} 60. Ke3 {[%clk 0:00:16.9]} 1/2-1/2

[Event "*** Titled Tuesday Blitz"]
[Site "Chess.com"]
[Date "2019.12.03"]
[Round "7"]
[White "MateusViageiro"]
[Black "Alopekos"]
[Result "0-1"]
[WhiteElo "2194"]
[BlackElo "2492"]
[TimeControl "180+2"]
[EndTime "14:37:13 PST"]
[Termination "Alopekos won by resignation"]

1. e4 {[%clk 0:03:01.1]} 1... c5 {[%clk 0:03:00.8]} 2. Nf3 {[%clk 0:03:01.3]}
2... e6 {[%clk 0:02:59.1]} 3. d4 {[%clk 0:03:01.6]} 3... cxd4 {[%clk 0:02:58.5]}
4. Nxd4 {[%clk 0:03:01.1]} 4... Nf6 {[%clk 0:02:58.3]} 5. Bd3 {[%clk 0:03:00.7]}
5... Nc6 {[%clk 0:02:57.3]} 6. Nxc6 {[%clk 0:02:59.2]} 6... dxc6 {[%clk
0:02:59.2]} 7. O-O {[%clk 0:02:58.2]} 7... e5 {[%clk 0:03:00.6]} 8. Nd2 {[%clk
0:02:51.6]} 8... Bc5 {[%clk 0:03:00.7]} 9. Nc4 {[%clk 0:02:51.1]} 9... Qe7
{[%clk 0:02:59.6]} 10. Be3 {[%clk 0:02:48.8]} 10... O-O {[%clk 0:03:00.2]} 11.
h3 {[%clk 0:02:43.7]} 11... Be6 {[%clk 0:02:50.8]} 12. Nxe5 {[%clk 0:02:35]}
12... Bxe3 {[%clk 0:02:51.5]} 13. fxe3 {[%clk 0:02:35.3]} 13... Qc5 {[%clk
0:01:59.7]} 14. Nf3 {[%clk 0:02:09.5]} 14... Qxe3+ {[%clk 0:01:53.5]} 15. Kh2
{[%clk 0:02:04.5]} 15... Nxe4 {[%clk 0:01:52.5]} 16. Bxe4 {[%clk 0:02:01]} 16...
Qxe4 {[%clk 0:01:54.4]} 17. Re1 {[%clk 0:01:58.6]} 17... Qf4+ {[%clk 0:01:53.3]}
18. Kh1 {[%clk 0:01:55.8]} 18... Bd5 {[%clk 0:01:18.1]} 19. Ng1 {[%clk
0:01:32.3]} 19... Rfe8 {[%clk 0:00:56.2]} 20. Re2 {[%clk 0:01:24.4]} 20... Qg3
{[%clk 0:00:31.2]} 21. Qd2 {[%clk 0:01:15.3]} 21... Rad8 {[%clk 0:00:30.7]} 22.
Rxe8+ {[%clk 0:01:09.4]} 22... Rxe8 {[%clk 0:00:32.6]} 23. Rf1 {[%clk
0:01:05.3]} 23... h6 {[%clk 0:00:24.2]} 24. b3 {[%clk 0:01:05.3]} 24... b5
{[%clk 0:00:14.2]} 25. Nf3 {[%clk 0:00:54.8]} 25... Re6 {[%clk 0:00:15]} 26. Qf2
{[%clk 0:00:50.6]} 26... Qxf2 {[%clk 0:00:07.4]} 27. Rxf2 {[%clk 0:00:50.4]}
27... Re3 {[%clk 0:00:09.3]} 28. Kh2 {[%clk 0:00:45.4]} 28... a5 {[%clk
0:00:10.2]} 29. Nd4 {[%clk 0:00:43.4]} 29... a4 {[%clk 0:00:11.6]} 30. Nf5
{[%clk 0:00:42.2]} 30... Re1 {[%clk 0:00:12.1]} 31. Nd6 {[%clk 0:00:38.5]} 31...
Ra1 {[%clk 0:00:04.5]} 32. c4 {[%clk 0:00:38.5]} 32... bxc4 {[%clk 0:00:05.3]}
33. bxc4 {[%clk 0:00:39.3]} 33... Be6 {[%clk 0:00:06.8]} 34. Rd2 {[%clk
0:00:36.1]} 34... Kf8 {[%clk 0:00:05.8]} 35. c5 {[%clk 0:00:33.5]} 35... Rxa2
{[%clk 0:00:06]} 36. Rd4 {[%clk 0:00:33.6]} 36... a3 {[%clk 0:00:05.2]} 37. Ra4
{[%clk 0:00:32]} 37... g6 {[%clk 0:00:04.2]} 38. Kg3 {[%clk 0:00:28.3]} 38...
Kg7 {[%clk 0:00:04.3]} 39. Ra8 {[%clk 0:00:27.6]} 39... Kf6 {[%clk 0:00:04.5]}
40. Ne4+ {[%clk 0:00:21.1]} 40... Ke5 {[%clk 0:00:05.5]} 41. Nc3 {[%clk
0:00:20.3]} 41... Ra1 {[%clk 0:00:06.8]} 42. Ne2 {[%clk 0:00:20.5]} 42... Re1
{[%clk 0:00:04.7]} 43. Kf2 {[%clk 0:00:20.5]} 43... Rb1 {[%clk 0:00:04.6]} 44.
Rxa3 {[%clk 0:00:20.4]} 44... Rb5 {[%clk 0:00:03.9]} 45. Re3+ {[%clk 0:00:21.5]}
45... Kf6 {[%clk 0:00:04.2]} 46. Nd4 {[%clk 0:00:21.5]} 46... Rxc5 {[%clk
0:00:04.5]} 47. Nxe6 {[%clk 0:00:23.4]} 47... fxe6 {[%clk 0:00:06]} 48. Rf3+
{[%clk 0:00:25.1]} 48... Rf5 {[%clk 0:00:06.9]} 49. Ke3 {[%clk 0:00:26]} 49...
Rxf3+ {[%clk 0:00:07.7]} 50. gxf3 {[%clk 0:00:27.9]} 50... Kf5 {[%clk
0:00:08.7]} 51. f4 {[%clk 0:00:27.5]} 51... c5 {[%clk 0:00:10.1]} 52. Kf3 {[%clk
0:00:27.3]} 52... c4 {[%clk 0:00:10.9]} 53. Ke3 {[%clk 0:00:27.5]} 53... c3
{[%clk 0:00:12.5]} 0-1

[Event "*** Titled Tuesday Blitz"]
[Site "Chess.com"]
[Date "2019.12.03"]
[Round "7"]
[White "kesarev"]
[Black "IgorBjelobrk"]
[Result "0-1"]
[WhiteElo "2475"]
[BlackElo "2677"]
[TimeControl "180+2"]
[EndTime "14:37:22 PST"]
[Termination "IgorBjelobrk won on time"]

1. Nf3 {[%clk 0:02:37]} 1... Nf6 {[%clk 0:03:00]} 2. c4 {[%clk 0:02:37.9]} 2...
e6 {[%clk 0:03:00.6]} 3. b3 {[%clk 0:02:38.4]} 3... d5 {[%clk 0:03:00]} 4. Bb2
{[%clk 0:02:39.7]} 4... b6 {[%clk 0:02:58.3]} 5. g3 {[%clk 0:02:40.7]} 5... Bb7
{[%clk 0:02:58.8]} 6. Bg2 {[%clk 0:02:42.3]} 6... Be7 {[%clk 0:02:52.3]} 7. O-O
{[%clk 0:02:42.6]} 7... O-O {[%clk 0:02:53.4]} 8. d3 {[%clk 0:02:41.2]} 8... c5
{[%clk 0:02:54.4]} 9. e3 {[%clk 0:02:41.9]} 9... Nc6 {[%clk 0:02:55.3]} 10. Nbd2
{[%clk 0:02:42.1]} 10... Qd7 {[%clk 0:02:55.5]} 11. Qe2 {[%clk 0:02:42.8]} 11...
Rfd8 {[%clk 0:02:55.4]} 12. Rfd1 {[%clk 0:02:43.5]} 12... Rac8 {[%clk
0:02:56.1]} 13. Rac1 {[%clk 0:02:44]} 13... Qe8 {[%clk 0:02:50.2]} 14. h3 {[%clk
0:02:41.1]} 14... h6 {[%clk 0:02:40.1]} 15. Nb1 {[%clk 0:02:39]} 15... d4 {[%clk
0:02:30.8]} 16. exd4 {[%clk 0:02:38.1]} 16... cxd4 {[%clk 0:02:31.4]} 17. Na3
{[%clk 0:02:38.4]} 17... e5 {[%clk 0:02:26.3]} 18. Nc2 {[%clk 0:02:31.5]} 18...
Nd7 {[%clk 0:02:24.5]} 19. Rb1 {[%clk 0:02:19.6]} 19... a5 {[%clk 0:02:23.7]}
20. Re1 {[%clk 0:02:04.8]} 20... f6 {[%clk 0:02:20]} 21. Nh4 {[%clk 0:01:53.2]}
21... Nc5 {[%clk 0:02:13.9]} 22. Ba3 {[%clk 0:01:48.6]} 22... Qd7 {[%clk
0:02:09.8]} 23. Bxc5 {[%clk 0:01:44.7]} 23... bxc5 {[%clk 0:02:07.8]} 24. Qh5
{[%clk 0:01:38.6]} 24... Bf8 {[%clk 0:02:04.4]} 25. Be4 {[%clk 0:01:29.1]} 25...
Ne7 {[%clk 0:02:04.9]} 26. Bxb7 {[%clk 0:01:20.4]} 26... Qxb7 {[%clk 0:02:06.8]}
27. Na3 {[%clk 0:01:12.2]} 27... g5 {[%clk 0:01:56.7]} 28. Ng2 {[%clk
0:00:52.8]} 28... Bg7 {[%clk 0:01:48.7]} 29. f4 {[%clk 0:00:46]} 29... Nc6
{[%clk 0:01:08.2]} 30. Nb5 {[%clk 0:00:39.4]} 30... Nb4 {[%clk 0:01:03.6]} 31.
Qe2 {[%clk 0:00:35.5]} 31... exf4 {[%clk 0:00:44.6]} 32. gxf4 {[%clk 0:00:36.1]}
32... Kh8 {[%clk 0:00:46.2]} 33. a3 {[%clk 0:00:34.9]} 33... Nc6 {[%clk
0:00:46.6]} 34. Rb2 {[%clk 0:00:20.9]} 34... Qd7 {[%clk 0:00:47.2]} 35. Qf3
{[%clk 0:00:20.4]} 35... Re8 {[%clk 0:00:45.2]} 36. Rbe2 {[%clk 0:00:20.9]}
36... Rxe2 {[%clk 0:00:40.8]} 37. Rxe2 {[%clk 0:00:22.8]} 37... Re8 {[%clk
0:00:42]} 38. Rxe8+ {[%clk 0:00:23]} 38... Qxe8 {[%clk 0:00:43.9]} 39. Kf2
{[%clk 0:00:23.2]} 39... Qe6 {[%clk 0:00:41.2]} 40. h4 {[%clk 0:00:21.7]} 40...
g4 {[%clk 0:00:41.8]} 41. Qd5 {[%clk 0:00:20.5]} 41... Qe8 {[%clk 0:00:25.4]}
42. h5 {[%clk 0:00:17.2]} 42... Ne7 {[%clk 0:00:25.4]} 43. Qe6 {[%clk 0:00:17]}
43... g3+ {[%clk 0:00:21.5]} 44. Kxg3 {[%clk 0:00:15.5]} 44... Qd8 {[%clk
0:00:19.1]} 45. Nh4 {[%clk 0:00:12]} 45... Kh7 {[%clk 0:00:18.3]} 46. Nd6 {[%clk
0:00:10.9]} 46... Qc7 {[%clk 0:00:15.8]} 47. Ne4 {[%clk 0:00:09.6]} 47... Qb7
{[%clk 0:00:11]} 48. Qf7 {[%clk 0:00:04.2]} 48... Nf5+ {[%clk 0:00:10]} 49. Nxf5
{[%clk 0:00:03.3]} 49... Qxf7 {[%clk 0:00:11.9]} 50. Kg4 {[%clk 0:00:04.3]}
50... Bf8 {[%clk 0:00:12.6]} 51. Nh4 {[%clk 0:00:03.9]} 51... Qe6+ {[%clk
0:00:13.5]} 52. f5 {[%clk 0:00:03.3]} 52... Qe5 {[%clk 0:00:14.5]} 53. Ng6
{[%clk 0:00:04.6]} 53... Qb8 {[%clk 0:00:11.1]} 54. Nxf6+ {[%clk 0:00:05.6]}
54... Kg7 {[%clk 0:00:13]} 55. Nd5 {[%clk 0:00:05.2]} 55... Qxb3 {[%clk
0:00:13.6]} 56. f6+ {[%clk 0:00:05]} 56... Kf7 {[%clk 0:00:14.8]} 57. Ne5+
{[%clk 0:00:06.2]} 57... Ke6 {[%clk 0:00:16.2]} 58. Ng6 {[%clk 0:00:02.8]} 58...
Bd6 {[%clk 0:00:15.3]} 0-1